bitfinex/quotes_BTCUSD_20250505
["timestamp","ask_amount","ask_price","bid_price","bid_amount"]
[1746484780334,0.04776551,95313.0,95312.0,5.8114672]
[1746484780773,0.04776551,95313.0,95312.0,5.8024672]
[1746484781122,0.04776551,95313.0,95312.0,5.8164672]
[1746484781326,2.3296598,95322.0,95321.0,0.3351582]
[1746484781528,2.3296598,95322.0,95321.0,0.47721214]
[1746484781731,2.3296598,95322.0,95321.0,5.52721214]
[1746484782697,2.3296598,95322.0,95321.0,5.86721214]
[1746484783356,2.3296598,95322.0,95321.0,5.88921214]
[1746484783982,2.2968077,95322.0,95321.0,5.88921214]
[1746484785488,2.2968077,95322.0,95321.0,5.93607064]
[1746484787084,2.2968077,95322.0,95321.0,5.92087064]
[1746484787250,2.2968077,95322.0,95321.0,5.77922979]
[1746484787422,2.2968077,95322.0,95321.0,4.69102979]
[1746484787824,2.2968077,95322.0,95321.0,4.70557064]
[1746484791147,2.2968077,95322.0,95321.0,4.65871214]
[1746484792045,2.2968077,95322.0,95321.0,4.67501214]
[1746484792718,2.2968077,95322.0,95321.0,4.80141214]
[1746484794562,2.2968077,95322.0,95321.0,4.76951214]
[1746484795207,2.25457104,95322.0,95321.0,4.76951214]
[1746484796569,2.25457104,95322.0,95321.0,4.81651911]
[1746484801071,2.0254235,95322.0,95321.0,4.81651911]
[1746484801292,2.0254235,95322.0,95321.0,0.85471911]
[1746484801528,2.0254235,95322.0,95321.0,5.90471911]
[1746484804568,1.99257138,95322.0,95321.0,5.23821911]
[1746484806866,1.99257138,95322.0,95321.0,4.98271911]
[1746484809336,2.02327138,95322.0,95321.0,4.98271911]
[1746484809505,2.02327138,95322.0,95321.0,5.40181911]
[1746484809675,2.00787138,95322.0,95321.0,5.40181911]
[1746484811013,2.02447138,95322.0,95321.0,5.40181911]
[1746484812030,2.02447138,95322.0,95321.0,1.16301911]
[1746484812235,2.02447138,95322.0,95321.0,6.21301911]
[1746484813802,2.02447138,95322.0,95321.0,6.32381911]
[1746484814250,2.02447138,95322.0,95321.0,6.21301911]
[1746484814784,2.02447138,95322.0,95321.0,2.69841911]
[1746484815636,2.02447138,95322.0,95321.0,2.68541911]
[1746484815790,2.02447138,95322.0,95321.0,2.67641911]
[1746484815988,2.02447138,95322.0,95321.0,0.80801911]
[1746484816285,2.02447138,95322.0,95321.0,0.80981557]
[1746484816471,2.02447138,95322.0,95321.0,3.90041557]
[1746484816783,2.02447138,95322.0,95321.0,4.24041557]
[1746484816903,2.02447138,95322.0,95321.0,4.22841557]
[1746484817712,2.02429726,95322.0,95321.0,4.22841557]
[1746484818160,2.02429726,95322.0,95321.0,3.14171557]
[1746484818533,2.02429726,95322.0,95321.0,3.12971557]
[1746484818737,2.02429726,95322.0,95321.0,3.12271557]
[1746484819014,2.02429726,95322.0,95321.0,3.13271557]
[1746484819157,2.02429726,95322.0,95321.0,3.13871557]
[1746484819370,2.02429726,95322.0,95321.0,2.45711557]
[1746484821819,1.99239726,95322.0,95321.0,2.45711557]
[1746484822747,1.99239726,95322.0,95321.0,1.15881557]
[1746484823108,1.99239726,95322.0,95321.0,6.01531557]
[1746484823310,1.99239726,95322.0,95321.0,5.88951557]
[1746484823528,1.99239726,95322.0,95321.0,5.66691557]
[1746484823715,1.99239726,95322.0,95321.0,4.92311557]
[1746484824406,1.99239726,95322.0,95321.0,4.79101557]
[1746484824652,2.02379726,95322.0,95321.0,2.07801557]
[1746484824887,1.98155645,95322.0,95321.0,1.03738458]
[1746484826985,1.94869901,95322.0,95321.0,1.03738458]
[1746484829562,1.94869901,95322.0,95321.0,0.99037761]
[1746484831461,1.94869901,95322.0,95321.0,0.99388716]
[1746484835608,1.94869901,95322.0,95321.0,0.57478716]
[1746484857536,1.94869901,95322.0,95321.0,0.62190249]
[1746484858177,1.9158397,95322.0,95321.0,0.62190249]
[1746484859183,1.9158397,95322.0,95321.0,0.57478716]
[1746484862482,1.9158397,95322.0,95321.0,0.62404394]
[1746484865579,1.9158397,95322.0,95321.0,0.67119882]
[1746484866932,1.9158397,95322.0,95321.0,0.12138147]
[1746484867150,1.9158397,95322.0,95321.0,0.33119882]
[1746484867905,1.9158397,95322.0,95321.0,0.31519882]
[1746484868280,1.9158397,95322.0,95321.0,0.22478716]
[1746484868677,1.9158397,95322.0,95321.0,0.22178716]
[1746484869118,1.9158397,95322.0,95321.0,0.22678716]
[1746484870411,1.9158397,95322.0,95321.0,0.22878716]
[1746484872461,1.9158397,95322.0,95321.0,0.64788716]
[1746484874614,1.9158397,95322.0,95321.0,0.69507802]
[1746484875298,2.12565485,95322.0,95321.0,0.48526067]
[1746484875733,1.93228978,95322.0,95321.0,0.48526067]
[1746484875952,1.93228978,95322.0,95321.0,0.47629086]
[1746484876193,1.93228978,95322.0,95321.0,0.69341578]
[1746484876708,1.9158397,95322.0,95321.0,0.69341578]
[1746484877051,1.93552873,95322.0,95321.0,0.69341578]
[1746484877991,1.93552873,95322.0,95321.0,0.48359843]
[1746484878409,1.93552873,95322.0,95321.0,0.01730757]
[1746484880175,1.95197925,95322.0,95321.0,0.01730757]
[1746484880378,1.95197925,95322.0,95321.0,0.22712492]
[1746484881009,1.92057925,95322.0,95321.0,0.56712492]
[1746484881219,1.90412873,95322.0,95321.0,5.63166577]
[1746484881709,1.8844397,95322.0,95321.0,5.64726577]
[1746484881911,1.8844397,95322.0,95321.0,5.74915591]
[1746484882111,1.8844397,95322.0,95321.0,5.72855591]
[1746484882347,1.8844397,95322.0,95321.0,5.73755591]
[1746484883439,1.8844397,95322.0,95321.0,5.72855591]
[1746484883660,1.8844397,95322.0,95321.0,5.73655591]
[1746484883813,1.8844397,95322.0,95321.0,5.74155591]
[1746484884475,1.8844397,95322.0,95321.0,6.16065591]
[1746484884647,1.4653397,95322.0,95321.0,6.51065964]
[1746484885435,1.43248241,95322.0,95321.0,6.50265964]
[1746484886518,1.43248241,95322.0,95321.0,6.49765964]
[1746484886717,1.43248241,95322.0,95321.0,6.51565964]
[1746484887364,1.43248241,95322.0,95321.0,6.50665964]
[1746484887779,1.43248241,95322.0,95321.0,6.51965964]
[1746484889387,0.70300737,95322.0,95321.0,6.51965964]
[1746484889607,0.70300737,95322.0,95321.0,6.97426823]
[1746484889608,0.26962113,95322.0,95321.0,6.97426823]
[1746484889823,0.21706999,95322.0,95321.0,6.97426823]
[1746484890030,0.02725659,95322.0,95321.0,7.49375538]
[1746484890325,0.001,95329.0,95328.0,0.86434279]
[1746484890539,0.001,95329.0,95328.0,6.02123293]
[1746484890753,0.00104533,95329.0,95328.0,6.02845557]
[1746484890974,0.00104533,95329.0,95328.0,6.04794272]
[1746484891180,0.00104533,95329.0,95328.0,6.06545891]
[1746484891411,0.00104533,95329.0,95328.0,6.07345891]
[1746484891612,0.00104533,95329.0,95328.0,6.08545891]
[1746484892735,0.00104533,95329.0,95328.0,5.78545891]
[1746484893354,0.00104533,95329.0,95328.0,5.78442929]
[1746484893797,0.00104533,95329.0,95328.0,5.44442929]
[1746484894991,0.00104533,95329.0,95328.0,5.83153302]
[1746484895190,0.00104533,95329.0,95328.0,0.78153302]
[1746484895405,0.00104533,95329.0,95328.0,5.83153302]
[1746484897628,0.00104533,95329.0,95328.0,5.70713302]
[1746484898515,0.001,95349.0,95328.0,5.70713302]
[1746484898516,0.001,95349.0,95329.0,0.35454085]
[1746484898638,0.05004533,95339.0,95338.0,0.78201093]
[1746484898849,4.533e-05,95339.0,95338.0,5.72819884]
[1746484899400,0.001,95349.0,95348.0,0.20975793]
[1746484899601,0.00104532,95349.0,95348.0,0.97987944]
[1746484899802,0.00104532,95349.0,95348.0,6.1415932]
[1746484900015,0.00104532,95349.0,95348.0,6.16108035]
[1746484900220,0.00104532,95349.0,95348.0,6.17081793]
[1746484900630,0.00104532,95349.0,95348.0,6.17881793]
[1746484900834,0.00104532,95349.0,95348.0,6.17081793]
[1746484901245,0.00104532,95349.0,95348.0,6.17881793]
[1746484902224,0.00104532,95349.0,95348.0,6.27493257]
[1746484902442,0.0321,95364.0,95363.0,0.54972494]
[1746484902443,0.0166,95364.0,95363.0,0.54972494]
[1746484902652,0.08490541,95398.0,95365.0,0.56426139]
[1746484902876,3.10045678,95366.0,95365.0,5.72115153]
[1746484903067,3.10045678,95366.0,95365.0,5.73731435]
[1746484903302,3.10045678,95366.0,95365.0,5.7568015]
[1746484903510,3.06845678,95366.0,95365.0,5.76653908]
[1746484903895,3.06845678,95366.0,95365.0,5.77353908]
[1746484904107,3.06845678,95366.0,95365.0,4.22293908]
[1746484904315,3.10055678,95366.0,95365.0,3.81213908]
[1746484904719,3.10055678,95366.0,95365.0,3.8120624]
[1746484905126,3.10055678,95366.0,95365.0,3.8050624]
[1746484905950,3.10055678,95366.0,95365.0,0.7164624]
[1746484906153,3.10055678,95366.0,95365.0,0.7274624]
[1746484906362,3.10055678,95366.0,95365.0,0.7354624]
[1746484906566,3.10055678,95366.0,95365.0,5.7854624]
[1746484907177,3.10055678,95366.0,95365.0,5.79327306]
[1746484909579,3.10055678,95366.0,95365.0,2.56143221]
[1746484910848,3.06383061,95366.0,95365.0,2.56143221]
[1746484911583,3.06383061,95366.0,95365.0,2.97491589]
[1746484911764,3.06383061,95366.0,95365.0,1.01685254]
[1746484912440,3.06383061,95366.0,95365.0,1.00585254]
[1746484912643,3.06383061,95366.0,95365.0,0.99785254]
[1746484912856,3.06383061,95366.0,95365.0,1.00385254]
[1746484913236,3.06383061,95366.0,95365.0,0.99785254]
[1746484913437,3.06383061,95366.0,95365.0,1.00185254]
[1746484913641,3.06383061,95366.0,95365.0,0.99044207]
[1746484913883,3.06383061,95366.0,95365.0,0.98070449]
[1746484916746,3.06383061,95366.0,95365.0,0.56722081]
[1746484918033,3.06383061,95366.0,95365.0,5.61722081]
[1746484919561,3.03173061,95366.0,95365.0,5.7386518]
[1746484920798,3.03173061,95366.0,95365.0,5.7306518]
[1746484921000,3.03173061,95366.0,95365.0,5.7386518]
[1746484921620,3.03173061,95366.0,95365.0,5.7266518]
[1746484921839,3.03173061,95366.0,95365.0,5.7376518]
[1746484922022,3.03173061,95366.0,95365.0,5.7446518]
[1746484923537,3.03173061,95366.0,95365.0,6.15813548]
[1746484923744,3.03173061,95366.0,95365.0,6.19387266]
[1746484923942,2.89872514,95366.0,95365.0,6.88487266]
[1746484924143,2.88639284,95366.0,95365.0,6.89687266]
[1746484924387,2.84417558,95366.0,95365.0,6.89687266]
[1746484924566,2.84417558,95366.0,95365.0,6.88987266]
[1746484924945,2.84417558,95366.0,95365.0,6.88587266]
[1746484925145,2.84417558,95366.0,95365.0,6.89787266]
[1746484925529,2.84417558,95366.0,95365.0,6.90687266]
[1746484925728,2.84417558,95366.0,95365.0,6.87787266]
[1746484926154,2.84417558,95366.0,95365.0,6.88687266]
[1746484926988,2.84417558,95366.0,95365.0,6.89887266]
[1746484929514,2.4306919,95366.0,95365.0,5.79438898]
[1746484930118,2.4306919,95366.0,95365.0,0.74438898]
[1746484930323,2.4306919,95366.0,95365.0,5.79438898]
[1746484931411,1.33026418,95366.0,95365.0,5.79438898]
[1746484931614,1.28232966,95366.0,95365.0,5.79438898]
[1746484935419,1.28232966,95366.0,95365.0,6.21348898]
[1746484935833,1.29882966,95366.0,95365.0,6.21348898]
[1746484936036,1.31542966,95366.0,95365.0,6.21348898]
[1746484937513,1.28232966,95366.0,95365.0,6.21348898]
[1746484938330,0.63419851,95366.0,95365.0,6.21348898]
[1746484938528,0.63419851,95366.0,95365.0,6.24736498]
[1746484938731,0.63419851,95366.0,95365.0,6.21348898]
[1746484939926,0.63419851,95366.0,95365.0,6.20148898]
[1746484940260,0.63419851,95366.0,95365.0,6.20548898]
[1746484940697,0.63419851,95366.0,95365.0,6.21448898]
[1746484941306,0.56246401,95366.0,95365.0,6.21448898]
[1746484941532,0.56246401,95366.0,95365.0,6.90548898]
[1746484947524,0.14336401,95366.0,95365.0,6.21448898]
[1746484949472,0.17476401,95366.0,95365.0,6.19994813]
[1746484949682,0.17476401,95366.0,95365.0,3.70084813]
[1746484950052,0.17476401,95366.0,95365.0,4.05538898]
[1746484952942,0.14192813,95366.0,95365.0,4.05538898]
[1746484953639,0.14192813,95366.0,95365.0,4.06512023]
[1746484953841,0.14192813,95366.0,95365.0,4.08458274]
[1746484960335,0.11052813,95366.0,95365.0,4.08458274]
[1746484961970,0.12652813,95366.0,95365.0,4.08458274]
[1746484963907,0.14172813,95366.0,95365.0,4.08458274]
[1746484964440,0.05007492,95369.0,95368.0,0.5642548]
[1746484964617,0.05007492,95369.0,95368.0,6.14024494]
[1746484964805,0.05007492,95369.0,95368.0,6.14560534]
[1746484965548,0.05007492,95369.0,95368.0,6.15760534]
[1746484965935,0.05007492,95369.0,95368.0,1.10760534]
[1746484966152,0.05007492,95369.0,95368.0,6.16560534]
[1746484966899,0.05007492,95369.0,95368.0,6.27493551]
[1746484967124,0.08167492,95369.0,95368.0,6.27493551]
[1746484968463,0.08167492,95369.0,95368.0,6.21234252]
[1746484973009,0.0488403,95369.0,95368.0,6.21234252]
[1746484975654,0.0488403,95369.0,95368.0,6.27496147]
[1746484976691,0.0488403,95369.0,95368.0,1.22496147]
[1746484977044,0.0488403,95369.0,95368.0,6.27496147]
[1746484980329,0.0488403,95369.0,95368.0,6.29444622]
[1746484985778,0.00662619,95369.0,95368.0,6.29444622]
[1746484987639,0.00662619,95369.0,95368.0,1.24444622]
[1746484987949,0.00662619,95369.0,95368.0,6.29444622]
[1746484989724,0.00662619,95369.0,95368.0,6.23182727]
[1746484990527,0.00662619,95369.0,95368.0,6.21234252]
[1746484991386,0.00662619,95369.0,95368.0,6.27496147]
[1746484994435,0.001,95389.0,95388.0,0.20863986]
[1746484994589,0.00104533,95389.0,95388.0,5.36553]
[1746484994792,0.00104533,95389.0,95388.0,5.3714202]
[1746484995696,0.00104533,95389.0,95388.0,5.3754202]
[1746484996356,0.00104533,95389.0,95388.0,5.3824202]
[1746484997462,0.03194533,95389.0,95388.0,5.3824202]
[1746484998227,0.03194533,95389.0,95388.0,5.42915738]
[1746484998764,0.03194533,95389.0,95388.0,5.43712319]
[1746485001617,0.03194533,95389.0,95388.0,5.33942319]
[1746485002275,0.03194533,95389.0,95388.0,4.58483305]
[1746485002688,0.03194533,95389.0,95388.0,4.55093305]
[1746485003596,0.03194533,95389.0,95388.0,0.27226724]
[1746485007259,0.02890533,95389.0,95388.0,0.27226724]
[1746485015932,0.01643615,95399.0,95398.0,0.209648]
[1746485016266,0.01688945,95399.0,95398.0,0.21470832]
[1746485017253,0.01688945,95399.0,95398.0,0.21670832]
[1746485018470,0.01688945,95399.0,95398.0,0.22170832]
[1746485018923,0.04818945,95399.0,95398.0,0.22170832]
[1746485019771,0.04818945,95399.0,95398.0,0.2684455]
[1746485030132,0.0317533,95399.0,95398.0,0.2684455]
[1746485036981,0.0317533,95399.0,95398.0,0.0587975]
[1746485037201,0.0317533,95399.0,95398.0,0.2684455]
[1746485037819,0.02034123,95400.0,95399.0,0.2096458]
[1746485038336,0.02034123,95400.0,95399.0,0.21468667]
[1746485038839,0.02034123,95400.0,95399.0,0.21668667]
[1746485039052,0.02034123,95400.0,95399.0,0.22168667]
[1746485040883,0.05254123,95400.0,95399.0,0.22168667]
[1746485042943,0.03474123,95400.0,95399.0,0.22168667]
[1746485049546,0.03474123,95400.0,95399.0,0.31771835]
[1746485051626,0.05117719,95400.0,95399.0,0.31771835]
[1746485054197,0.03537719,95400.0,95399.0,0.31771835]
[1746485055810,0.03537719,95400.0,95399.0,0.26864604]
[1746485058003,0.05097719,95400.0,95399.0,0.26864604]
[1746485058256,0.03537719,95400.0,95399.0,0.26864604]
[1746485058707,0.00254087,95400.0,95399.0,0.26864604]
[1746485058934,0.0156,95405.0,95404.0,0.20963481]
[1746485060209,0.0156,95405.0,95404.0,0.21363481]
[1746485061021,0.031,95405.0,95404.0,0.21363481]
[1746485061522,0.031,95405.0,95404.0,0.21463481]
[1746485064784,0.0156,95405.0,95404.0,0.21463481]
[1746485065497,0.0156,95405.0,95404.0,0.21904674]
[1746485069981,0.0141707,95408.0,95407.0,0.20962822]
[1746485070464,0.0300707,95408.0,95407.0,0.21403222]
[1746485071633,0.0300707,95408.0,95407.0,0.21703222]
[1746485074996,0.0300707,95408.0,95407.0,0.21262822]
[1746485083695,0.23969672,95408.0,95407.0,0.003]
[1746485092129,0.25529672,95408.0,95407.0,0.003]
[1746485092774,0.23969672,95408.0,95407.0,0.003]
[1746485097070,0.25613303,95408.0,95407.0,0.003]
[1746485100530,0.04650701,95408.0,95407.0,0.003]
[1746485100908,0.25823701,95408.0,95407.0,0.003]
[1746485101097,0.25613303,95408.0,95407.0,0.003]
[1746485101613,0.71815332,95408.0,95407.0,0.003]
[1746485101820,0.5826414,95401.0,95400.0,0.04907721]
[1746485103766,0.59718225,95401.0,95400.0,0.04907721]
[1746485103955,0.59718225,95401.0,95376.0,0.06266035]
[1746485103956,0.22538536,95381.0,95376.0,0.07314516]
[1746485104361,0.0157,95381.0,95380.0,0.06779023]
[1746485104569,0.00210398,95381.0,95380.0,0.06779023]
[1746485105144,0.00210398,95381.0,95380.0,0.00496532]
[1746485106257,0.36758191,95381.0,95380.0,0.00496532]
[1746485106458,0.46888074,95381.0,95380.0,0.00796532]
[1746485106669,0.46888074,95381.0,95380.0,0.004]
[1746485107045,0.48418074,95381.0,95380.0,0.004]
[1746485107437,0.48418074,95381.0,95380.0,0.003]
[1746485107633,0.0104847,95377.0,95373.0,0.01048514]
[1746485107837,0.32190273,95376.0,95374.0,0.00398118]
[1746485108054,0.32190273,95376.0,95372.0,0.22064266]
[1746485108294,0.32190273,95376.0,95373.0,0.00398383]
[1746485108841,0.33238754,95376.0,95373.0,0.00398383]
[1746485109039,0.0162,95375.0,95374.0,0.002]
[1746485109251,0.10924233,95375.0,95374.0,0.00598118]
[1746485109564,0.31894088,95375.0,95374.0,0.00598118]
[1746485109769,0.33327754,95375.0,95374.0,0.00598118]
[1746485110349,0.33327754,95375.0,95374.0,0.00898118]
[1746485110555,0.33327754,95375.0,95374.0,0.005]
[1746485110757,0.33327754,95375.0,95374.0,0.003]
[1746485110997,0.24233919,95375.0,95374.0,0.00590708]
[1746485111231,0.24233919,95375.0,95374.0,0.00988826]
[1746485111232,0.25783919,95375.0,95374.0,0.00988826]
[1746485111436,0.25783919,95375.0,95374.0,0.00590708]
[1746485111680,0.24139855,95375.0,95374.0,0.00590708]
[1746485111881,0.68691884,95375.0,95374.0,0.00590708]
[1746485112722,0.68691884,95375.0,95374.0,0.00290708]
[1746485112876,0.58140295,95373.0,95372.0,0.0004533]
[1746485113048,0.58140295,95373.0,95372.0,0.00036062]
[1746485113539,0.59784587,95373.0,95372.0,0.00036062]
[1746485113727,0.70336616,95373.0,95372.0,0.00036062]
[1746485114818,0.70636616,95373.0,95372.0,0.00036062]
[1746485116407,0.60084587,95373.0,95372.0,0.00036062]
[1746485116604,0.58534587,95373.0,95372.0,0.00036062]
[1746485116808,0.58534587,95373.0,95372.0,0.00462286]
[1746485117010,0.58534587,95373.0,95372.0,0.00036062]
[1746485117209,0.58534587,95373.0,95372.0,0.00462286]
[1746485117440,0.69086616,95373.0,95372.0,0.00462286]
[1746485119751,0.70596616,95373.0,95372.0,0.00462286]
[1746485120453,0.68952324,95373.0,95372.0,0.00462286]
[1746485123078,0.70596586,95373.0,95372.0,0.00462286]
[1746485127035,0.69086586,95373.0,95372.0,0.00462286]
[1746485127234,0.67442324,95373.0,95372.0,0.00462286]
[1746485128652,0.56890295,95373.0,95372.0,0.00462286]
[1746485128861,0.55270295,95373.0,95372.0,0.00462286]
[1746485130492,0.56914514,95373.0,95372.0,0.00462286]
[1746485131306,0.46914514,95373.0,95372.0,0.00462286]
[1746485131618,0.46914514,95373.0,95372.0,0.00607071]
[1746485131835,0.46914514,95373.0,95372.0,0.00036062]
[1746485132038,0.46914514,95373.0,95372.0,0.00603967]
[1746485132281,0.46914514,95373.0,95372.0,0.00036062]
[1746485132506,0.46914514,95373.0,95372.0,0.00603967]
[1746485133194,0.57466543,95373.0,95372.0,0.00603967]
[1746485133418,0.46914514,95373.0,95372.0,0.00603967]
[1746485134109,0.48524514,95373.0,95372.0,0.00603967]
[1746485135498,0.46914514,95373.0,95372.0,0.00603967]
[1746485136380,0.48544514,95373.0,95372.0,0.00603967]
[1746485136735,0.59096543,95373.0,95372.0,0.00603967]
[1746485139312,0.48544514,95373.0,95372.0,0.00603967]
[1746485140283,0.46900295,95373.0,95372.0,0.00603967]
[1746485143196,0.4854452,95373.0,95372.0,0.00603967]
[1746485145409,0.4691452,95373.0,95372.0,0.00603967]
[1746485147157,0.4852452,95373.0,95372.0,0.00603967]
[1746485147382,0.59076549,95373.0,95372.0,0.00603967]
[1746485148301,0.6104646,95373.0,95372.0,0.00603967]
[1746485148749,0.6256646,95373.0,95372.0,0.00603967]
[1746485149428,0.52014431,95373.0,95372.0,0.00603967]
[1746485150107,0.50494431,95373.0,95372.0,0.00603967]
[1746485154495,0.5642482,95371.0,95370.0,0.1533073]
[1746485154708,0.5642482,95371.0,95370.0,0.10764968]
[1746485154709,0.5955482,95371.0,95370.0,0.10764968]
[1746485154902,1.4180676,95371.0,95370.0,0.10764968]
[1746485155486,1.4200676,95371.0,95370.0,0.10764968]
[1746485156133,1.9200676,95371.0,95370.0,0.10764968]
[1746485156299,1.9220676,95371.0,95370.0,0.10764968]
[1746485156895,1.9220676,95371.0,95370.0,1e-08]
[1746485157705,1.9200676,95371.0,95370.0,1e-08]
[1746485157917,0.22026067,95342.0,95339.0,0.0157]
[1746485158121,0.20977554,95340.0,95339.0,0.01574533]
[1746485158371,0.21187952,95340.0,95339.0,0.01574533]
[1746485158689,0.22220604,95340.0,95339.0,0.01574533]
[1746485158894,0.22010206,95340.0,95339.0,4.533e-05]
[1746485159135,0.23980117,95340.0,95339.0,4.533e-05]
[1746485160159,0.23980117,95340.0,95339.0,0.00304533]
[1746485160586,0.23980117,95340.0,95339.0,0.00804533]
[1746485161058,0.23980117,95340.0,95339.0,0.02374533]
[1746485162097,0.28320605,95340.0,95339.0,0.02374533]
[1746485162922,0.28320605,95340.0,95339.0,0.02365254]
[1746485163247,0.23980117,95340.0,95339.0,0.02365254]
[1746485163438,0.23980117,95340.0,95339.0,0.01865254]
[1746485163631,0.23980117,95340.0,95339.0,0.0157]
[1746485163833,0.23980117,95340.0,95339.0,0.0207]
[1746485164051,0.23980117,95340.0,95339.0,0.02650046]
[1746485165127,0.23980117,95340.0,95339.0,0.02640774]
[1746485165730,0.22010206,95340.0,95339.0,0.02640774]
[1746485166772,0.01032652,95340.0,95339.0,0.02640774]
[1746485166959,0.2097737,95341.0,95339.0,0.02640774]
[1746485167169,0.21187768,95341.0,95339.0,0.02640774]
[1746485167371,0.00210398,95341.0,95339.0,0.22057752]
[1746485167529,0.20972174,95365.0,95351.0,0.22515133]
[1746485167730,0.35048624,95363.0,95351.0,0.23109562]
[1746485167971,0.22021595,95361.0,95351.0,0.24689562]
[1746485168409,0.20974155,95356.0,95351.0,0.24689562]
[1746485168655,0.01048679,95358.0,95351.0,0.24689562]
[1746485169380,0.35048679,95358.0,95357.0,0.0158]
[1746485169575,0.46635908,95358.0,95357.0,0.02172313]
[1746485169781,0.47551227,95358.0,95357.0,0.02172313]
[1746485170317,0.36999198,95358.0,95357.0,0.02072313]
[1746485170849,0.37299198,95358.0,95357.0,0.02072313]
[1746485171043,0.58272792,95358.0,95357.0,0.02072313]
[1746485173905,0.58272792,95358.0,95357.0,0.00592313]
[1746485174387,0.01048833,95344.0,95340.0,0.22026353]
[1746485174592,0.01259242,95343.0,95341.0,0.00591972]
[1746485174823,0.01963998,95342.0,95340.0,0.20977554]
[1746485175030,0.01963998,95342.0,95341.0,0.23104685]
[1746485175255,0.22025463,95346.0,95343.0,0.0154]
[1746485175450,0.20976673,95344.0,95343.0,0.0154]
[1746485175651,0.22941579,95345.0,95344.0,0.00586294]
[1746485177039,0.22941579,95345.0,95344.0,0.02326294]
[1746485177245,0.01964981,95345.0,95344.0,0.00786294]
[1746485177519,0.22941434,95345.0,95344.0,0.00786294]
[1746485178597,0.33493463,95345.0,95344.0,0.00786294]
[1746485179465,0.22941434,95345.0,95344.0,0.00786294]
[1746485179869,0.22941434,95345.0,95344.0,0.002]
[1746485180205,0.01964981,95345.0,95344.0,0.00786294]
[1746485180405,0.01964981,95345.0,95344.0,0.02326294]
[1746485180821,0.01964981,95345.0,95344.0,0.23302967]
[1746485181225,0.22941434,95345.0,95344.0,0.02326294]
[1746485182245,0.22941434,95345.0,95344.0,0.0174]
[1746485182707,0.22941434,95345.0,95344.0,0.02327988]
[1746485183530,0.22941434,95345.0,95344.0,0.0174]
[1746485183986,0.01964981,95345.0,95344.0,0.02327934]
[1746485184160,0.23151832,95345.0,95344.0,0.0174]
[1746485184364,0.22941434,95345.0,95344.0,0.0174]
[1746485184586,0.22941434,95345.0,95344.0,0.02327934]
[1746485185982,0.01964981,95345.0,95344.0,0.02327934]
[1746485186184,0.22941434,95345.0,95344.0,0.02327934]
[1746485186781,0.01964981,95345.0,95344.0,0.00787934]
[1746485186992,0.27753313,95345.0,95344.0,0.002]
[1746485187247,0.29112915,95345.0,95344.0,0.002]
[1746485188433,0.63112915,95345.0,95344.0,0.001]
[1746485188977,0.58511434,95345.0,95344.0,0.001]
[1746485189199,0.20977994,95338.0,95331.0,0.0173]
[1746485189474,0.21188392,95338.0,95331.0,0.0173]
[1746485189686,0.23153373,95338.0,95331.0,0.0173]
[1746485189904,0.22942975,95338.0,95331.0,0.0173]
[1746485190129,0.22942975,95338.0,95331.0,0.001]
[1746485190376,0.22942975,95338.0,95337.0,0.00104532]
[1746485191065,0.72179089,95338.0,95337.0,0.00104532]
[1746485191298,0.72179089,95338.0,95311.0,0.0168]
[1746485191299,0.20983716,95312.0,95311.0,0.001]
[1746485191525,0.56844114,95312.0,95311.0,0.001]
[1746485191749,0.58233716,95312.0,95311.0,0.00066233]
[1746485191982,0.56633716,95312.0,95311.0,0.00066233]
[1746485192212,0.34,95312.0,95311.0,0.00066233]
[1746485192442,0.6973,95313.0,95312.0,0.20983716]
[1746485192662,0.6973,95313.0,95312.0,0.21606804]
[1746485193103,0.6973,95313.0,95312.0,0.21406804]
[1746485193595,0.6983,95313.0,95312.0,0.21306804]
[1746485194257,0.6983,95313.0,95312.0,0.22926804]
[1746485194693,0.6983,95313.0,95312.0,0.21306804]
[1746485195140,0.6993,95313.0,95312.0,0.00623088]
[1746485195373,0.6983,95313.0,95312.0,0.00623088]
[1746485195565,0.6973,95313.0,95312.0,0.20983716]
[1746485195779,0.6973,95313.0,95312.0,0.21606804]
[1746485196237,1.3834961,95313.0,95312.0,0.00623088]
[1746485196489,0.56437801,95312.0,95311.0,0.00066233]
[1746485197207,0.54983716,95312.0,95311.0,0.00066233]
[1746485197445,0.34,95312.0,95311.0,0.00066233]
[1746485197669,0.54983716,95312.0,95311.0,0.00066233]
[1746485198108,0.65535745,95312.0,95311.0,0.00066233]
[1746485199645,0.67155745,95312.0,95311.0,0.00066233]
[1746485200531,0.7015983,95312.0,95311.0,0.00066233]
[1746485202399,1.3988983,95312.0,95311.0,0.00066233]
[1746485202607,1.4008983,95312.0,95311.0,0.00066233]
[1746485204989,0.01049461,95287.0,95283.0,0.02225738]
[1746485205189,0.20989689,95285.0,95284.0,0.00559392]
[1746485205373,0.00210398,95285.0,95283.0,0.21035399]
[1746485205574,0.00210398,95285.0,95284.0,0.00559392]
[1746485205783,0.00210398,95285.0,95283.0,0.22085032]
[1746485206002,0.00210398,95285.0,95284.0,0.00559392]
[1746485206450,0.34,95295.0,95287.0,0.01049461]
[1746485206667,0.01259782,95294.0,95291.0,0.01049417]
[1746485206884,0.35049372,95295.0,95291.0,0.01049417]
[1746485206885,0.34,95295.0,95292.0,0.01605972]
[1746485207292,0.01049262,95305.0,95299.0,0.01049328]
[1746485207498,0.01049317,95300.0,95296.0,0.01049361]
[1746485207704,0.20986702,95299.0,95296.0,0.01049361]
[1746485207933,0.01049317,95300.0,95297.0,0.20986964]
[1746485208136,0.01049317,95300.0,95297.0,0.21541765]
[1746485208343,0.01049317,95300.0,95297.0,0.23051765]
[1746485208813,0.20986616,95299.0,95297.0,0.02064801]
[1746485208995,0.20986616,95299.0,95297.0,0.02164801]
[1746485209544,0.20986616,95299.0,95297.0,0.23151801]
[1746485209742,0.20986616,95299.0,95297.0,0.23199758]
[1746485209950,0.20986616,95299.0,95297.0,0.02312758]
[1746485210504,0.20986616,95299.0,95297.0,0.02021358]
[1746485210729,0.20986799,95298.0,95297.0,0.02235583]
[1746485210909,0.20986799,95298.0,95297.0,0.02335583]
[1746485211266,0.20986799,95298.0,95297.0,0.02235583]
[1746485211469,0.20986799,95298.0,95297.0,0.02335583]
[1746485211670,0.22036097,95300.0,95297.0,0.23322602]
[1746485211898,0.2098664,95299.0,95297.0,0.02235583]
[1746485212099,0.22036097,95300.0,95297.0,0.23322525]
[1746485212254,0.20986763,95299.0,95297.0,0.02535583]
[1746485212927,0.20986763,95299.0,95297.0,0.02335583]
[1746485213098,0.20986763,95299.0,95297.0,0.02435583]
[1746485213966,0.20986763,95299.0,95297.0,0.02235583]
[1746485214169,0.20986763,95299.0,95297.0,0.02264083]
[1746485214354,0.20986763,95299.0,95297.0,0.23251102]
[1746485214555,0.20987366,95296.0,95293.0,0.00595858]
[1746485214783,0.00210398,95295.0,95293.0,0.21583674]
[1746485215208,0.21197909,95295.0,95290.0,0.20988383]
[1746485215417,0.00210398,95295.0,95292.0,0.22037513]
[1746485215619,0.0125977,95295.0,95291.0,0.20988226]